Cogmind - Beta 15 @@@ ROGUE MODE // 2025.06.27 @ 23:08:40 Player: Zaros426 Result: Destroyed by P-60 Hacker with Shock Rifle Performance ------------- Evolutions (4) 2000 Regions Visited (6) 1200 Robots Destroyed (107) 535 Value Destroyed (2720) 2720 Prototype IDs (36) 720 Alien Tech Used (0) 0 Bonus (800) 800 TOTAL SCORE: 7975 Bonus ------- Registered with UFD 300 Met Optimus in HQ 500 Cogmind --------- Core Integrity 0/850 Matter 174/300 Energy 5/100 System Corruption 12% Temperature Cool (0) Movement Core (50) Location -6/Factory Parts ------- > --- POWER (1) -------- (None) > --- PROPULSION (6) --- (None) > --- UTILITY (6) ------ Advanced Weight Redist. System Machine Analyzer Experimental Targeting Computer Makeshift System Shield A0-MCA's Component Scanner > --- WEAPON (2) ------- (None) > --- INVENTORY (5) ---- High-capacity Storage Unit High-capacity Matter Pod (200) ECM Suite Rainbow Chip CPS Tube (2) Peak State ------------ > --- POWER ------------ Angular Momentum Engine > --- PROPULSION ------- Armored Treads Carbon-fiber Leg Titanium Leg Titanium Leg Flexi-carbon Leg Flexi-carbon Leg > --- UTILITY ---------- High-capacity Storage Unit Experimental Targeting Computer Experimental Propulsion Shielding Hardlight Generator Makeshift System Shield Makeshift System Restoration Module > --- WEAPON ----------- Precision Shock Rifle Gauss Rifle > --- INVENTORY -------- Airjet Gravmag System Gravmag System High-capacity Battery High-capacity Matter Pod Advanced Weight Redist. System Machine Analyzer ECM Suite ECM Suite Experimental Propulsion Shielding Experimental Propulsion Shielding A0-MCA's Component Scanner Drone Bay Rainbow Chip Dirty Datajack CPS Tube Greatsword [Rating: 67] Favorites ----------- Power Subdweller Power Source Engine Subdweller Power Source Power Core Nuclear Core Propulsion Armored Treads Treads Armored Treads Leg Titanium Leg Wheel Subdweller Monowheel Hover Unit Gravmag System Flight Unit VTOL Module Utility Huge Storage Unit Device Seismic Detector Storage Huge Storage Unit Processor Machine Analyzer Hackware Hacking Suite Protection Experimental Propulsion Shielding Weapon Subdweller Beam Cannon Energy Gun Precision Shock Rifle Energy Cannon Subdweller Beam Cannon Ballistic Gun Subdweller Machine Gun Ballistic Cannon Light Cannon Launcher Subdweller Shrapnel Launcher Special Weapon Mining Laser Slashing Weapon Greatsword Special Melee Weapon Datajack Build | -11 -10 -10 -10 -8 -8 -6 ------- Run | Yrd Mat Min Sub Rec Scr Fac Slots Evolved 8 | . . . . . . 8 Power . | . . . . . . . Propulsion 4 | . . . . . . 4 Utility 4 | . . . . . . 4 Weapon . | . . . . . . . Parts Attached 90 | 5 9 2 16 5 19 34 Power 10 | . 1 1 2 . 3 3 Engine 8 | . 1 1 2 . 1 3 Core 2 | . . . . . 2 . Reactor . | . . . . . . . Propulsion 25 | 2 . 1 3 2 7 10 Treads 5 | 2 . 1 . 1 1 . Leg 8 | . . . . . 1 7 Wheel 7 | . . . 3 1 3 . Hover 3 | . . . . . . 3 Flight 2 | . . . . . 2 . Utility 32 | 1 3 . 4 2 4 18 Device 14 | 1 1 . 2 . 4 6 Storage 4 | . 1 . 2 1 . . Processor 7 | . . . . . . 7 Hackware 3 | . 1 . . 1 . 1 Protection 4 | . . . . . . 4 Artifact . | . . . . . . . Weapon 23 | 2 5 . 7 1 5 3 Energy Gun 2 | . . . 1 . . 1 Energy Cannon 3 | . . . 2 1 . . Ballistic Gun 8 | 2 2 . 2 . 1 1 Ballistic Cannon 2 | . 2 . . . . . Launcher 3 | . . . 2 . 1 . Special Weapon 2 | . 1 . . . 1 . Impact Weapon . | . . . . . . . Slashing Weapon 1 | . . . . . 1 . Piercing Weapon . | . . . . . . . Special Melee Weapon 2 | . . . . . 1 1 Unidentified Prototypes 5 | . . . . . 1 4 Parts Lost 29 | . . 1 2 . . 26 Power 2 | . . . . . . 2 Propulsion 10 | . . 1 . . . 9 Utility 11 | . . . 1 . . 10 Weapon 6 | . . . 1 . . 5 Highest Loss Streak 12 | . . 1 2 . . 12 To Critical Strikes . | . . . . . . . Average Backups 18 | 1 9 14 16 22 20 14 Power . | . . . . . . . Propulsion 3 | . . 1 2 4 4 . Utility 9 | . 5 8 8 10 10 10 Weapon 3 | 1 2 3 3 4 3 1 Tool/Special . | . . . . . . . Unused Backups 40 | . 2 4 7 2 19 6 Power 2 | . . . 1 1 . . Propulsion 13 | . . . 3 1 9 . Utility 13 | . 1 3 2 . 2 5 Weapon 10 | . 1 . 1 . 8 . Tool/Special 2 | . . 1 . . . 1 Average Slot Usage (%) 91 | . 95 100 98 100 87 81 Engine 8 | . 12 14 13 14 4 2 Core 3 | . . . . . 7 2 Treads 22 | . 27 28 23 14 24 8 Leg 1 | . . . . . . 26 Wheel 3 | . . . 4 14 2 . Device 8 | . 8 13 12 . 5 11 Storage 12 | . 12 14 14 14 12 5 Hackware 4 | . 5 . . 13 5 5 Energy Cannon 9 | . . . 14 28 9 . Ballistic Gun 5 | . 5 . 4 . 8 . Ballistic Cannon 5 | . 20 28 6 . . . Slashing Weapon 1 | . . . . . 3 4 Peak Build Rating 67 | 5 10 13 17 21 32 67 Average Rating 20 | 3 8 10 14 19 23 52 On Entrance 13 | . 4 10 13 17 21 29 Naked Turns 1 | . . . . . 1 . Heaviest Build 102 | 4 32 36 102 102 101 94 Greatest Support 89 | 3 40 40 40 20 40 89 Greatest Overweight (x) 5 | 1 1 . 5 5 5 2 Average Overweight (x) 1 | . . . 2 5 2 . Largest Inventory Capacity 25 | 5 15 15 25 25 25 25 Average Capacity 20 | 5 14 15 18 25 23 19 Most Carried 25 | 5 15 15 25 25 25 25 Average Carried 19 | 2 10 14 18 24 22 16 Final Capacity 25 | 5 15 15 25 25 25 5 Final Carried 25 | 5 14 14 25 25 25 5 Class Distribution -------------------- 78% | Mutant 15% | Scavenger-Mutant 4% | Derelict-Mutant Dominant Class ---------------- Mutant | -10/Materials Mutant | -10/Mines Mutant | -10/Subcaves Scavenger-Mutant | -8/Recycling Mutant | -8/Scraptown Derelict-Mutant | -6/Factory Resources | -11 -10 -10 -10 -8 -8 -6 ----------- Run | Yrd Mat Min Sub Rec Scr Fac Matter Collected 3417 | 329 750 426 612 50 647 603 Remotely . | . . . . . . . Salvage Created 4194 | 194 729 407 654 458 . 1752 Parts 248 | 15 53 32 58 21 . 69 Haulers Intercepted 4 | . 2 . . . . 2 Recyclers Shooed 10 | 1 . 1 . 3 . 5 Parts Field Recycled . | . . . . . . . Retrieved Matter . | . . . . . . . Parts Self-Destructed 14 | . . . 14 . . . Prevented . | . . . . . . . Kills | -11 -10 -10 -10 -8 -8 -6 ------- Run | Yrd Mat Min Sub Rec Scr Fac Combat Hostiles Destroyed 61 | . 13 11 19 3 . 15 Melee 9 | . . . . . . 9 Guns 6 | . 3 . 1 . . 2 Cannons 33 | . 10 11 9 3 . . AOE 13 | . . . 9 . . 4 Classes Destroyed 14 | 2 7 . 1 1 . 3 Worker 7 | . 1 2 . . . 4 Builder 8 | . 3 . . . . 5 Tunneler 7 | 5 . 2 . . . . Hauler 4 | . 2 . . . . 2 Recycler 12 | 1 2 1 . 4 . 4 Mechanic 1 | . . . . . . 1 Operator 3 | . 2 . . . . 1 Watcher 4 | . 3 . . . . 1 Swarmer 12 | . 3 3 4 . . 2 Grunt 25 | . 10 8 . . . 7 Sentry 5 | . . . . 3 . 2 Hunter 1 | . . . . . . 1 Programmer 3 | . . . . . . 3 Subdweller 15 | . . . 15 . . . Best Kill Streak 7 | 5 4 4 4 4 . 7 Combat Bots Only 5 | . 3 4 4 1 . 5 Max Kills in Single Turn 2 | 1 2 2 2 1 . 2 Gunslinging . | . . . . . . . Exploded 2 | . . . 2 . . 2 Melee 1 | . . . . . . 1 Uniques/NPCs Destroyed . | . . . . . . . Combat | -11 -10 -10 -10 -8 -8 -6 -------- Run | Yrd Mat Min Sub Rec Scr Fac Hostile Shots Fired 444 | . 33 29 29 6 . 347 Missed 155 | . 13 10 9 2 . 121 Hits 289 | . 20 19 20 4 . 226 Melee 1 | . . . . . . 1 Projectile 288 | . 20 19 20 4 . 225 AOE 1 | . . . 1 . . . Critical Strikes 11 | . . 1 3 . . 7 Actively Blocked 1 | . . . . . . 1 Damage Taken 5170 | . 184 225 492 57 . 4212 Core 1025 | . 26 62 66 13 . 858 Absorbed by Shields 209 | . . . . . . 209 Redirected to Shielding 470 | . . . . . . 470 Regen/Repaired (Parts) 866 | . 93 . . . 773 . Core Remaining (%) 66 | 100 . . . . 33 . Volleys Fired 228 | 20 64 29 46 29 . 40 Largest 2 | 2 2 2 2 2 . 2 Hottest 160 | 40 100 60 160 160 . 83 Shots Fired 380 | 39 113 58 89 37 . 44 Gun 128 | 39 27 . 19 . . 43 Cannon 223 | . 72 58 56 37 . . Launcher 15 | . . . 14 . . 1 Special 14 | . 14 . . . . . Kinetic 260 | 39 99 58 47 . . 17 Thermal 93 | . 14 . 42 37 . . Explosive . | . . . . . . . Electromagnetic 27 | . . . . . . 27 Robot Hit Streak 27 | 18 7 6 12 15 . 27 Robot Miss Streak 5 | 2 4 5 1 1 . 1 Penetration Max . | . . . . . . . Secondary Targets . | . . . . . . . Shots Hit Robots 284 | 28 64 33 50 20 2 87 Core Hits 134 | 9 28 19 34 7 . 37 Critical Kills . | . . . . . . . Critical Parts Destroyed . | . . . . . . . Critical Strikes 9 | . 4 3 1 . . 1 Blast 8 | . 4 3 1 . . . Sever 1 | . . . . . . 1 Melee Attacks 87 | . . . . . 2 85 Impact . | . . . . . . . Slashing 78 | . . . . . . 78 Piercing 7 | . . . . . . 7 Sneak Attacks 16 | . . . . . 2 14 Combat Hostiles . | . . . . . . . Follow-up Attacks . | . . . . . . . Damage Inflicted 8435 | 315 1088 613 1981 517 . 3921 Guns 1521 | 315 217 . 264 . . 725 Cannons 2706 | . 847 613 729 517 . . Explosions 1012 | . . . 988 . . 24 Melee 3172 | . . . . . . 3172 Ramming . | . . . . . . . Kinetic 3675 | 315 1064 613 1408 . . 275 Thermal 1114 | . 24 . 573 517 . . Explosive . | . . . . . . . Electromagnetic 474 | . . . . . . 474 Impact . | . . . . . . . Slashing 3156 | . . . . . . 3156 Piercing 16 | . . . . . . 16 Highest Corruption 11 | . . . . . . 11 Average Corruption 5 | . . . . . . 5 Corruption Purged 5 | . . . . . . 5 Corruption Blocked . | . . . . . . . Effects 26 | . . . . . . 26 Message Errors 5 | . . . . . . 5 Matter Fused 11 | . . . . . . 11 Heat Flow Errors 2 | . . . . . . 2 Energy Discharges 3 | . . . . . . 3 Data Loss (minor) 3 | . . . . . . 3 Alerts 2 | . . . . . . 2 Overload Shots . | . . . . . . . Overflow Damage 641 | . 15 . 27 3 . 596 Projectiles 18 | . 15 . . 3 . . Explosions 27 | . . . 27 . . . Melee 596 | . . . . . . 596 Knockbacks 15 | . 9 6 . . . . Impact . | . . . . . . . Kinetic 15 | . 9 6 . . . . Secondary . | . . . . . . . Self-Inflicted Damage . | . . . . . . . Shots . | . . . . . . . Rammed . | . . . . . . . Targets Rammed . | . . . . . . . Kicked . | . . . . . . . Crushed . | . . . . . . . Highest Temperature 261 | . 120 81 72 261 . 177 Average Temperature 43 | . 31 25 24 68 . 42 Received Heat Transfer 766 | . 48 105 30 9 . 574 Siege Activations . | . . . . . . . Martial Activations . | . . . . . . . Shielding Activations . | . . . . . . . Robots Disrupted . | . . . . . . . Combat Hostiles . | . . . . . . . Robots Corrupted . | . . . . . . . Combat Hostiles . | . . . . . . . Parts Fried 6 | . . . . . . 6 Impact Corruptions . | . . . . . . . Robots Melted . | . . . . . . . Combat Hostiles . | . . . . . . . Parts Melted 5 | . . . 1 1 . 3 Heat Transferred 1493 | . 50 . 777 666 . . Parts Sabotaged 2 | . . . . . . 2 Parts Stolen . | . . . . . . . Parts Stripped . | . . . . . . . Power Chain Reactions . | . . . . . . . Alert | -11 -10 -10 -10 -8 -8 -6 ------- Run | Yrd Mat Min Sub Rec Scr Fac Maximum Alert Level 1 | . . . . . . 1 Low Security (%) 99 | 100 100 100 . 100 . 97 Level 1 . | . . . . . . 2 Level 2 . | . . . . . . . Level 3 . | . . . . . . . Level 4 . | . . . . . . . Level 5 . | . . . . . . . High Security . | . . . . . . . Max Security . | . . . . . . . Peak Influence 202 | 15 99 105 . 83 . 202 Initial 25 | . 3 17 . 25 . . Average 35 | 3 42 27 . 21 . 52 Influence Increases 2047 | 30 528 328 170 341 . 650 Destroy 0b10 Robot/C 920 | . 260 220 80 60 . 300 Destroy 0b10 Robot/NC 230 | 30 65 25 . 20 . 90 Destroy Leader 196 | . 60 50 . . . 86 Trap Triggered on 0b10 20 | . . . . . . 20 Successful Hack 120 | . 37 18 . 35 . 30 Select Force Hacks 240 | . 60 . . 180 . . Disable Machine 90 | . 30 . . 30 . 30 Destroy Structure 51 | . 16 . . 16 . 19 Lose Combat Pursuer 180 | . . 15 90 . . 75 Influence Decreases 1994 | 25 487 374 116 395 . 597 Entered New Map 60 | . 2 29 . 29 . . Time Decay 1654 | 25 485 335 116 366 . 327 Lost Part 270 | . . 10 . . . 260 Lost Ally 10 | . . . . . . 10 Squads Dispatched 17 | . 5 . . . . 12 Investigation 8 | . 3 . . . . 5 Extermination 3 | . . . . . . 3 Reinforcement 6 | . 2 . . . . 4 Assault . | . . . . . . . Garrison . | . . . . . . . Intercept . | . . . . . . . Searches Triggered . | . . . . . . . Construction Impeded 1 | . . . . . . 1 Haulers Reinforced 2 | . . . . . . 2 Active Scanning Responses . | . . . . . . . Cargo Convoy Interrupts 1 | . . . . . . 1 Stealth | -11 -10 -10 -10 -8 -8 -6 --------- Run | Yrd Mat Min Sub Rec Scr Fac Distress Signals 4 | . 1 . . . . 3 Communications Jammed . | . . . . . . . Distress Signals . | . . . . . . . Times Spotted 116 | . 21 10 21 2 . 62 Peak Tracking Total 27 | . 3 5 3 1 . 27 Tactical Retreats 7 | . . 1 2 . . 4 Traps | -11 -10 -10 -10 -8 -8 -6 ------- Run | Yrd Mat Min Sub Rec Scr Fac Traps Triggered 13 | . 6 . 2 . . 5 Indirectly . | . . . . . . . Trap Hack Attempts . | . . . . . . . Triggered . | . . . . . . . Disarmed . | . . . . . . . Reprogrammed . | . . . . . . . Reused 2 | . . . . . . 2 Traps Extracted . | . . . . . . . Installed 2 | . . . . . . 2 Triggered 2 | . . . . . . 2 Most Traps Carried 2 | . . . 1 1 2 2 Machines | -11 -10 -10 -10 -8 -8 -6 ---------- Run | Yrd Mat Min Sub Rec Scr Fac Machines Disabled 11 | . 2 . 5 2 . 2 Max in Single Turn 3 | . 1 . 3 1 . 1 Machines Repaired . | . . . . . . . Machines Dismantled . | . . . . . . . Machines Sabotaged . | . . . . . . . Overloaded Fab Kills . | . . . . . . . Hacking | -11 -10 -10 -10 -8 -8 -6 --------- Run | Yrd Mat Min Sub Rec Scr Fac Machines Accessed 46 | . 10 2 1 14 11 8 Terminals 18 | . 7 2 . 6 . 3 Fabricators 1 | . . . . . . 1 Repair Stations 1 | . 1 . . . . . Recycling Units 12 | . 2 . . 6 . 4 Scanalyzers . | . . . . . . . Garrison Access . | . . . . . . . Total Hacks 194 | . 28 5 9 50 71 31 Successful 161 | . 21 3 9 44 71 13 Failed 32 | . 7 2 . 5 . 18 Catastrophic 2 | . . 1 . . . 1 Database Lockouts 1 | . . . . 1 . . Manual 69 | . 21 4 . 17 . 27 Terminals 68 | . 23 5 . 19 . 21 Fabricators 4 | . . . . . . 4 Repair Stations 2 | . 2 . . . . . Recycling Units 16 | . 3 . . 7 . 6 Scanalyzers . | . . . . . . . Garrison Access . | . . . . . . . Terminal Hacks 125 | . 7 3 9 32 71 3 Record 102 | . . . 8 24 70 . Part Schematic 3 | . 2 1 . . . . Robot Analysis 4 | . 1 1 . 2 . . Prototype ID Bank 3 | . 1 . . 2 . . Terminal Index 3 | . 1 . . 1 . 1 Alert Level 1 | . . . . 1 . . Locate Traps 3 | . 1 . . . . 2 Security Status 1 | . . . . 1 . . Recall Reinforcements 1 | . 1 . . . . . Hauler Manifests 1 | . . . . 1 . . Zone Layout 1 | . . 1 . . . . Proto ID Catalog 2 | . . . 1 . 1 . Fabricator Hacks 1 | . . . . . . 1 Network Status 1 | . . . . . . 1 Repair Station Hacks 2 | . 2 . . . . . Scan Component 1 | . 1 . . . . . Repair 1 | . 1 . . . . . Recycling Unit Hacks . | . . . . . . . Scanalyzer . | . . . . . . . Garrison Access Hacks . | . . . . . . . Unauthorized Hacks 33 | . 12 . . 12 . 9 Terminals 20 | . 10 . . 6 . 4 Botnet 7 | . 3 . . 1 . 3 Operators 1 | . 1 . . . . . Skim 12 | . 6 . . 5 . 1 Fabricators 1 | . . . . . . 1 Haulers 1 | . . . . . . 1 Repair Stations . | . . . . . . . Recycling Units 12 | . 2 . . 6 . 4 Tunnel 8 | . 2 . . 6 . . Fedlink 4 | . . . . . . 4 Scanalyzers . | . . . . . . . Garrison Access . | . . . . . . . Data Cores Recovered 1 | . . . . . . 1 Used . | . . . . . . . Hacking Detections 22 | . 9 2 . 7 . 4 Full Trace Events 1 | . . . . . . 1 Feedback Events . | . . . . . . . Feedback Blocked . | . . . . . . . Robot Schematics Acquired . | . . . . . . . Robots Built . | . . . . . . . Authchips . | . . . . . . . Time . | . . . . . . . Total Robot Build Rating . | . . . . . . . Part Schematics Acquired 3 | . 2 1 . . . . Parts Built . | . . . . . . . Authchips . | . . . . . . . Time . | . . . . . . . Total Part Build Rating . | . . . . . . . Parts Repaired 1 | . 1 . . . . . Time 26 | . 26 . . . . . Parts Recycled . | . . . . . . . Recycled Matter . | . . . . . . . Retrieved Matter . | . . . . . . . Retrieved Components . | . . . . . . . Parts Scanalyzed . | . . . . . . . Part Schematics Acquired . | . . . . . . . Parts Damaged . | . . . . . . . Bothacking | -11 -10 -10 -10 -8 -8 -6 ------------ Run | Yrd Mat Min Sub Rec Scr Fac Used RIF Installer . | . . . . . . . Robots Hacked 2 | . . . . . 2 . Non-combat . | . . . . . . . Combat 2 | . . . . . 2 . Robot Hacks Applied 2 | . . . . . 2 . parse_system 2 | . . . . . 2 . Relay Couplers Released 4 | . . . . . . 4 Programmers 4 | . . . . . . 4 Fabnet Peak Effective % . | . . . . . . . Robots Rewired . | . . . . . . . Allies Hacked . | . . . . . . . Hacks Repelled . | . . . . . . . Allies | -11 -10 -10 -10 -8 -8 -6 -------- Run | Yrd Mat Min Sub Rec Scr Fac Total Allies . | . . . . . . . Largest Group . | . . . . . . . Highest-Rated Group . | . . . . . . . Highest-Rated Ally . | . . . . . . . Total Orders . | . . . . . . . Ally Attacks . | . . . . . . . Total Damage . | . . . . . . . Kills . | . . . . . . . Allies Corrupted . | . . . . . . . Allies Melted . | . . . . . . . Intel | -11 -10 -10 -10 -8 -8 -6 ------- Run | Yrd Mat Min Sub Rec Scr Fac Active Infowar (turns) 5322 | 12 1052 1141 2194 36 . 887 Sensors 124 | . . . . . . 124 IFF 404 | . . . . . . 404 Structural 562 | . . . 526 36 . . Seismic 3822 | 12 1052 1141 1617 . . . Machine Analysis 885 | . . . . . . 885 ECM 51 | . . . 51 . . . Robot Analysis Total 4 | . 1 1 . 2 . . Derelict Logs Recovered 8 | . . 1 2 . 5 . Drone Launches 1 | . . . . . . 1 Drone Recoveries . | . . . . . . . Exploration | -11 -10 -10 -10 -8 -8 -6 ------------- Run | Yrd Mat Min Sub Rec Scr Fac Turns Passed 19039 | 93 1660 1196 4276 1363 9168 1283 Spaces Moved 7934 | 48 806 651 1807 788 3174 660 Core 253 | 48 108 . . . 60 37 Treads 4603 | . 698 651 898 . 2356 . Legs 661 | . . . . . 71 590 Wheels 2206 | . . . 909 788 508 1 Hover 32 | . . . . . . 32 Flight 179 | . . . . . 179 . Fastest Speed 32 | 50 50 160 160 160 32 50 Average Speed 202 | 52 147 160 176 160 268 120 Slowest Speed 330 | 100 160 160 240 160 330 197 Overloaded Moves . | . . . . . . . Propulsion Burnouts . | . . . . . . . Robots Hopped . | . . . . . . . Potential Cave-ins . | . . . . . . . Cave-ins Triggered . | . . . . . . . Exploration Rate (%) 69 | 4 98 99 74 99 93 20 Regions Visited 6 Branch Regions 4 Pre-discovered Areas 19 | . 3 . 2 11 2 1 Known Exits Taken 1 | . . . . 1 . . Unknown Exits Taken 5 | 1 1 1 1 . 1 . Scrap Searched 20 | . . 2 9 . 9 . Spaces Dug 63 | . 9 . 34 1 . 19 Terrain Destroyed 191 | . 13 . 151 8 . 19 Melee 19 | . . . . . . 19 Projectile 28 | . 13 . 7 8 . . AOE 144 | . . . 144 . . . Terrain Rammed . | . . . . . . . Walls Destroyed . | . . . . . . . Machines Disabled . | . . . . . . . Actions | -11 -10 -10 -10 -8 -8 -6 --------- Run | Yrd Mat Min Sub Rec Scr Fac Total 10402 | 78 1131 751 2810 856 3823 953 Wait 1707 | . 205 53 883 19 489 58 Move 7928 | 47 805 650 1806 787 3173 660 Hop . | . . . . . . . Pick Up 140 | 5 15 6 28 7 68 11 Fast Attach 57 | 4 10 3 4 1 18 17 Attach 54 | 1 6 2 2 . 8 35 Detach 21 | 1 3 . . . 3 14 Swap 54 | . 17 . 18 4 7 8 Drop 121 | . 6 8 23 9 55 20 Fire 228 | 20 64 29 46 29 . 40 Melee 87 | . . . . . 2 85 Ram . | . . . . . . . Kick . | . . . . . . . Crush . | . . . . . . . Escape Stasis 3 | . . . . . . 3 Rewire . | . . . . . . . Trap 2 | . . . . . . 2 Miscellaneous . | . . . . . . . Route ------- -11/Scrapyard -10/Materials (discovered 6 exits: *Mat x3 / *Min x2 / *Sub) -10/Mines (discovered 4 exits: *Mat x2 / [*Exi] / *Sub) -10/Subcaves (discovered 4 exits: [*Mat x2] / *Rec / *Scr) -8/Recycling (discovered 2 exits: *Fac / *Scr) -8/Scraptown (discovered 2 exits: *Fac x2) -6/Factory (discovered 1 exit: Low) History --------- Turn | Location | Event 12 | -11/Scrapyard | Discovered new exit (range 14) 94 | -11/Scrapyard | Entered Materials 312 | -10/Materials | Build established: Mutant 337 | -10/Materials | Discovered new exit (range 7) 350 | -10/Materials | Discovered new exit (range 5) 702 | -10/Materials | Discovered new exit (range 15) 1030 | -10/Materials | Discovered new exit (range 12) 1174 | -10/Materials | Repaired Lgt. Treads 1258 | -10/Materials | Discovered new exit (range 16) 1356 | -10/Materials | Learned location of Mines (-10) 1428 | -10/Materials | Learned Storage trap positions 1505 | -10/Materials | Discovered new exit (range 6) 1541 | -10/Materials | Loaded intel: 9 trap records 1581 | -10/Materials | Learned location of 2 exits from Materials 1609 | -10/Materials | Learned 2 Mines zone layouts 1625 | -10/Materials | Learned 2 Mines zone layouts 1691 | -10/Materials | Learned location of 1 exit from Storage 1741 | -10/Materials | Learned location of 1 exit from Storage 1754 | -10/Materials | Entered Mines 1755 | -10/Mines | Identified exit to Materials 1773 | -10/Mines | Met a Derelict bent on vengeance 1865 | -10/Mines | Discovered exit to Materials (range 5) 2341 | -10/Mines | Learned 8 Materials zone layouts 2521 | -10/Mines | Deemed a non-threat by the Exiles lab entrance 2521 | -10/Mines | Discovered new exit (range 5) 2933 | -10/Mines | Discovered new exit (range 6) 2950 | -10/Mines | Entered Subcaves 2951 | -10/Subcaves | Approached by a straggling Scientist 2971 | -10/Subcaves | Scientist uncovered a shortcut to Scraptown 3089 | -10/Subcaves | Visited 4L-MR0's lab 3111 | -10/Subcaves | Found Rainbow Chip 4494 | -10/Subcaves | Learned location of Zion (-7) 4494 | -10/Subcaves | Met a Zionite searching for "candidates" 4593 | -10/Subcaves | Discovered new exit (range 12) 5072 | -10/Subcaves | Discovered new exit (range 8) 5241 | -10/Subcaves | Learned Materials stockpile data 5330 | -10/Subcaves | Discovered new exit (range 13) 5386 | -10/Subcaves | Core integrity fell below 50% 5392 | -10/Subcaves | Ambushed by Subdweller buried in earth 5696 | -10/Subcaves | Build established: Scavenger-Mutant 5803 | -10/Subcaves | Disturbed a concealed Subdweller 6288 | -10/Subcaves | A swath of the cavern ceiling suddenly collapsed 7226 | -10/Subcaves | Entered Recycling 7759 | -8/Recycling | Discovered new exit (range 9) 7822 | -8/Recycling | Scanned before Scraplab entrance 7887 | -8/Recycling | Identified exit to Scraptown 7986 | -8/Recycling | Learned 2 Storage zone layouts 8042 | -8/Recycling | Learned 4 Lower Caves zone layouts 8480 | -8/Recycling | Build established: Mutant 8575 | -8/Recycling | Entered Scraplab 8589 | -8/Recycling | Entered Scraptown 8725 | -8/Scraptown | Scanned Subdweller tech in exchange for log data 8730 | -8/Scraptown | Learned 12 Research zone layouts 8732 | -8/Scraptown | Learned location of Armory (-3) 8735 | -8/Scraptown | Learned Research stockpile data 8757 | -8/Scraptown | Discovered new exit (range 11) 9301 | -8/Scraptown | Heard Great Nut preacher, LISTEN AND RECITE! 9304 | -8/Scraptown | Visited Cave Peace 9400 | -8/Scraptown | Visited TADAMA 9522 | -8/Scraptown | Visited Comm Corps 9638 | -8/Scraptown | Visited CR-KLE's Repair Center 9704 | -8/Scraptown | Visited UFD Registry 9704 | -8/Scraptown | Registered with UFD as "Carbonslasher" 9806 | -8/Scraptown | Visited The Evicted 9912 | -8/Scraptown | Visited Bundlers 10298 | -8/Scraptown | Visited Modified Component R&D 10446 | -8/Scraptown | Visited Science Guys 10562 | -8/Scraptown | Visited A0-MCA Data Center 10829 | -8/Scraptown | Discovered new exit (range 5) 10925 | -8/Scraptown | Visited Curators Association 11020 | -8/Scraptown | Visited Observation Area 11159 | -8/Scraptown | Visited Scrap Suit Storage 11248 | -8/Scraptown | Visited Chapter 10 11337 | -8/Scraptown | Visited Junk Repository 11439 | -8/Scraptown | Visited DA-N13 Charitable Foundation 11453 | -8/Scraptown | Found DCF Scrap (30 items) 11532 | -8/Scraptown | Visited Junk Cannon Lab 11586 | -8/Scraptown | Found Prototype Special Weapon 11586 | -8/Scraptown | Identified Junk Cannon 12000 | -8/Scraptown | Delivered Scrap Shield to a Scientist 12227 | -8/Scraptown | Visited Cyclists 12250 | -8/Scraptown | Entered Cyclist Reading Room 12915 | -8/Scraptown | Given an A- rating by A0-MCA 12919 | -8/Scraptown | Found A0-MCA's Component Scanner 15371 | -8/Scraptown | CR-KLE repaired 6 parts 17692 | -8/Scraptown | Met Optimus 17692 | -8/Scraptown | Accepted into 0bPrime 17757 | -8/Scraptown | Entered Factory 17757 | -6/Factory | Evolved 8 slots: Propulsion x4, Utility x4 17758 | -6/Factory | Identified exit to Lower Caves 18068 | -6/Factory | Build established: Derelict-Mutant 18076 | -6/Factory | Loaded intel: 8 recycling unit locations 18217 | -6/Factory | Learned location of Protoforge (-2) 18575 | -6/Factory | Lost 5 parts (2n2u1w) 18626 | -6/Factory | System corruption reached 10% 18796 | -6/Factory | Found Prototype Processor 18796 | -6/Factory | Identified Exp. Targeting Computer 18801 | -6/Factory | Found Exp. Targeting Computer 18885 | -6/Factory | Lost 7 parts (1p2n3u1w) 18931 | -6/Factory | Spotted B-75 Beast 18964 | -6/Factory | Core integrity fell below 50% 19003 | -6/Factory | Cargo convoy interrupted 19017 | -6/Factory | Core integrity fell below 20% 19040 | -6/Factory | Destroyed by P-60 Hacker with Shock Rifle Last Messages --------------- 19019_ K-01 Serf collects debris. 19020_ P-60 Hacker resets P-60 Hacker, system corruption cleaned. 19020_ R-10 Processor collects F-cell Engine. 19020_ Gravmag System destroyed. 19021_ K-01 Serf collects debris. 19021_ R-10 Processor collects Cesium-ion Thruster. 19022_ C-30 ARC bursts open, deploying its payload. 19022_ X-72 Disruptor unfolds itself. 19022_ X-67 Chaingunner unfolds itself. 19022_ H-66 Slayer unfolds itself. 19022_ M-28 Smith unfolds itself. 19023_ K-01 Serf collects debris. 19024_ System corrupted: Component data lost. 19027_ Slug penetrates Wall. 19027_ K-01 Serf cleans the Subcomponent Replicator. 19029_ Slug penetrates Wall. 19031_ W-25 Informer sends out distress signal. 19038_ Triggered EM Surge Trap. 19038_ The floor emits a surge of raw power. 19038_ System corrupted (+4). Map ----- +----------------------------------------------------+ | ???????????????????????"""?"""???# ??# !!!# """ | | ???????????????????????"""?"""???# ??# ! !!!# """ | | ???????????????????????"""?"""???# ??# !!!# | | ???????????????????????? ???????# ??# # """ | | ????????????????????????## ####### ### ! # """ | | ??????????????????????? # # """ | | ???????????????????????? # # | | ?????????????????????????? % /* %+ | | ?????????""?""???? ????? * =%# !# | | ?????????""S""???# ?????? = %=# """ ##### | | ?????????""""????# #???#########!# """ #?### | | ?????????????????# # """" !#!# "" #???? | | ?????????????????# # """" *#%# "" #???? | | ?????????? ?????# # """" !# #%% "" #???? | | ?????"""?""" """?# # """" =# #! "" #???? | | ?????"""?""" """?# # #%# * #???? | | ?????"""?""" """?# # = !#%# % #???? | | ??????????? ??# # !# ############# | | ????????????? ?# #########+#"# ## | | ????#+#########/## ## ### ## | | ????# ##+###/## """ """ | | ?? p %# """ """ | | ???????# % % #"" "%" # """ """ | | #########+#####""# #"" " " # "" "" | | ######## #"" " " # "" "" | | """ ####???#@ #"Y " " # | | """ #??????# #"" " " # * | | """ #??????# #"" " " + | | "" #??????#s #"" " " # | | "" """"T"""" #??????#s + " " # | | """"""""""" #??????# # " " ###+######## | | ###############"##??????#s #[ #??????????# | | ??#""#### ##???????# #########??????????# | | ??## ## **#???????# s #?????????????????# | | ???# ##""" *#???????# #?????????????????# | | ??## ##"R #?? ? #??????????????? | | ###" ##""" /? T #?????????????? | | # "# ! # #???????A????? | | T" # ####+#### #####! #???????????? | | # ## #???# #????????????# | | ##+#"# #???#########????????????###/## | | + ^ ^ #?????????????????????????????? | | # ^ #?????????????????????????????? | | # "" ##+###?????????????????????????????? | | # " ###??????????????????????????????????? | | # " #????????????????????????????????????? | | # #????????????????????????????????????? | | # #????????????????????????????????????? | | # !#????????????????????????????????????? | | ##### !! #????????????????????????????????????? | +----------------------------------------------------+ Best States ------------- Heat Dissipation 47 Energy Generation 19 Energy Capacity 500 Matter Stores 300 Matter Capacity 300 Sight Range 16 Robot Scan Range 15 Terrain Scan Density 10 ECM Strength 1 Additional Mass Support 9 Armor Coverage 600 Propulsion Shielding 90 Phase Shifting 5 Evasion (%) 70 Targeting Accuracy 12 Recoil Reduction 2 Offensive Hacking 10 Defensive Hacking 11 Item Schematics ----------------- Huge Storage Unit | -10/Materials | Hacked Hcp. Storage Unit | -10/Materials | Hacked ECM Suite | -10/Mines | Hacked Robot Schematics ------------------ None Fabricated ------------ Nothing Repaired ---------- Lgt. Treads | 33% | -10/Materials Alien Tech Used ----------------- None Achievements -------------- None Challenges ------------ None Game ------ Seed RefineryScatterMachine Manual? 0 Play Time 01:40:18 Cumulative 314.5 hours Start 2025.06.27 @ 21:20:19 End 2025.06.27 @ 23:08:40 Sessions 1 Manual Loads 0 Difficulty Rogue Special Mode None Game No. 159 Rogue 159 Adventurer 0 Explorer 0 Win Type - Total 1 Types 0/0/0/0/1/0/0/0/0/0 Lore% 79 Gallery% 77 Achievement% 66 Wizard Run 0 Options --------- Layout 0 ASCII 0 Keyboard 0 Movement Mouse Keybinds 0 Fullscreen 1 Font 24/Smallcaps Map View 183x50 Zoom Use 0% Tactical HUD 1 Map Filters NONE Filters NONE Steam 0 RUN: 858bd986-8b0a-45a5-a5b5-8da2b8b863cc